bitfinex/quotes_BTCUSD_20220307
["timestamp","ask_amount","ask_price","bid_price","bid_amount"]
[1646683142043,0.12629,37373.0,37360.0,0.066951]
[1646683142240,0.07629,37367.0,37357.0,0.1339528]
[1646683142436,0.07629,37367.0,37357.0,7.08e-05]
[1646683142437,0.24011723,37365.0,37357.0,7.08e-05]
[1646683142637,0.1,37362.0,37356.0,0.133939]
[1646683142838,0.1,37362.0,37357.0,0.19579824]
[1646683143039,0.1,37363.0,37360.0,0.32832091]
[1646683143239,0.1,37367.0,37358.0,7.08e-05]
[1646683143439,1.3,37366.0,37356.0,0.133939]
[1646683143642,1.3,37366.0,37357.0,0.1533]
[1646683143841,0.2,37367.0,37357.0,0.1533]
[1646683144039,0.19370325,37364.0,37356.0,0.133939]
[1646683144342,0.24203422,37361.0,37357.0,0.066976]
[1646683144542,0.23155061,37364.0,37357.0,0.066976]
[1646683144839,0.2,37367.0,37357.0,0.066976]
[1646683145039,0.1,37366.0,37357.0,0.066976]
[1646683145499,0.1,37366.0,37357.0,0.06704237]
[1646683145698,0.23987875,37365.0,37358.0,0.37916532]
[1646683146101,0.23987875,37365.0,37358.0,0.44612332]
[1646683146299,0.1,37366.0,37358.0,0.44612332]
[1646683146500,0.1,37366.0,37358.0,0.44618969]
[1646683146699,0.1,37366.0,37358.0,0.28856045]
[1646683146899,0.1,37366.0,37358.0,0.28488245]
[1646683147102,0.1,37366.0,37360.0,0.066957]
[1646683147300,0.38764212,37366.0,37361.0,0.066953]
[1646683147501,0.38764212,37366.0,37361.0,0.200853]
[1646683147701,0.38764212,37366.0,37361.0,0.1339]
[1646683147900,0.409037,37365.0,37361.0,0.1339]
[1646683148106,0.409037,37365.0,37359.0,0.15336637]
[1646683148107,0.409037,37364.0,37359.0,0.15336637]
[1646683148500,0.1,37362.0,37361.0,0.26]
[1646683148702,0.1,37362.0,37361.0,0.11830309]
[1646683148703,0.509037,37362.0,37361.0,0.11830309]
[1646683148903,0.909037,37361.0,37356.0,0.133939]
[1646683149130,0.1,37362.0,37358.0,6.637e-05]
[1646683149529,0.1,37362.0,37359.0,0.220268]
[1646683149734,0.19989963,37365.0,37359.0,0.066968]
[1646683149931,0.09989963,37365.0,37360.0,0.20929408]
[1646683150129,0.2857664,37364.0,37361.0,0.391969]
[1646683150331,0.2857664,37364.0,37360.0,0.1533]
[1646683150532,0.22452265,37363.0,37360.0,0.1533]
[1646683150933,0.435327,37362.0,37357.0,6.223e-05]
[1646683151130,0.4907832,37359.0,37357.0,6.223e-05]
[1646683151337,0.458337,37358.0,37357.0,6.223e-05]
[1646683151534,0.84689384,37358.0,37350.0,0.32073513]
[1646683151731,0.21488018,37351.0,37348.0,0.21824817]
[1646683152134,0.21488018,37351.0,37348.0,0.066985]
[1646683152731,0.09999963,37354.0,37345.0,0.133974]
[1646683152732,0.30492983,37352.0,37345.0,0.133974]
[1646683152982,0.30492983,37352.0,37346.0,0.96205329]
[1646683153182,0.23330124,37350.0,37345.0,0.27712188]
[1646683153383,0.09999963,37354.0,37347.0,0.392145]
[1646683153581,0.09999963,37354.0,37345.0,0.392162]
[1646683153881,0.09999963,37354.0,37346.0,0.066986]
[1646683154483,0.27251251,37350.0,37347.0,0.392142]
[1646683154682,0.09999963,37354.0,37346.0,0.066986]
[1646683154990,0.01337,37359.0,37346.0,0.066986]
[1646683154991,0.07629,37368.0,37356.0,0.066957]
[1646683155182,0.07629,37368.0,37357.0,0.3477718]
[1646683155382,0.1,37367.0,37357.0,0.3477718]
[1646683155582,0.35619851,37367.0,37357.0,0.3477718]
[1646683155781,0.35619851,37367.0,37358.0,0.06696]
[1646683155987,0.435327,37362.0,37355.0,0.1533]
[1646683156184,0.435327,37362.0,37358.0,0.133918]
[1646683156626,0.2,37359.0,37358.0,0.133918]
[1646683156829,0.2,37359.0,37358.0,0.08305688]
[1646683156830,0.609037,37359.0,37358.0,0.08305688]
[1646683157028,0.02629,37362.0,37358.0,0.08305688]
[1646683157029,0.020091,37362.0,37358.0,0.08305688]
[1646683157229,0.1,37363.0,37358.0,0.08305688]
[1646683157437,0.1,37360.0,37359.0,0.74083574]
[1646683157632,0.1,37365.0,37361.0,0.391969]
[1646683157828,0.08028744,37366.0,37359.0,0.05]
[1646683158029,0.08028744,37366.0,37361.0,0.391969]
[1646683158227,0.1,37364.0,37360.0,0.2033]
[1646683158428,0.1,37364.0,37360.0,0.6129912]
[1646683158629,0.1,37364.0,37360.0,0.4790912]
[1646683158928,0.1,37364.0,37360.0,0.01736457]
[1646683159130,0.409037,37363.0,37360.0,0.01736457]
[1646683159330,0.1,37361.0,37360.0,0.01736457]
[1646683159530,0.509037,37361.0,37360.0,0.01736457]
[1646683159937,0.609037,37361.0,37360.0,0.01736457]
[1646683160134,0.658337,37361.0,37360.0,0.26]
[1646683160577,0.778433,37361.0,37360.0,0.26]
[1646683160979,0.678433,37361.0,37360.0,0.26]
[1646683161480,0.2,37361.0,37360.0,0.26]
[1646683161678,0.2,37361.0,37360.0,0.651984]
[1646683161679,0.195,37361.0,37360.0,0.651984]
[1646683161879,0.195,37361.0,37360.0,1.04846472]
[1646683162077,0.7078,37375.0,37361.0,1.6]
[1646683162278,0.00012685,37375.0,37362.0,0.39648072]
[1646683162480,0.00012685,37375.0,37369.0,0.066941]
[1646683162679,0.29371492,37375.0,37369.0,0.066941]
[1646683163079,0.0074,37373.0,37369.0,0.066941]
[1646683163378,0.409037,37372.0,37369.0,0.066941]
[1646683163677,0.0461,37370.0,37369.0,0.066941]
[1646683163878,0.0461,37370.0,37368.0,0.183882]
[1646683164129,0.00012689,37375.0,37369.0,0.06694]
[1646683164327,0.1,37374.0,37369.0,0.08404]
[1646683164725,0.1,37371.0,37369.0,0.08404]
[1646683164926,0.020085,37372.0,37369.0,0.08404]
[1646683165433,0.1,37371.0,37369.0,0.08404]
[1646683165628,0.409037,37370.0,37369.0,0.08404]
[1646683165829,0.409037,37370.0,37368.0,0.09990703]
[1646683166029,0.1,37369.0,37362.0,7.861e-05]
[1646683166229,0.32363242,37363.0,37362.0,7.861e-05]
[1646683166431,1.77056899,37363.0,37362.0,7.861e-05]
[1646683166626,1.8436222,37363.0,37362.0,7.861e-05]
[1646683166828,0.99235001,37363.0,37355.0,0.18531562]
[1646683167026,0.99235001,37363.0,37352.0,0.133968]
[1646683167027,0.435327,37361.0,37352.0,0.133968]
[1646683167230,0.758337,37361.0,37359.0,7.861e-05]
[1646683167427,0.558337,37361.0,37359.0,7.861e-05]
[1646683167909,0.609037,37361.0,37359.0,7.861e-05]
[1646683168109,0.609037,37361.0,37358.0,0.066979]
[1646683168305,0.609037,37361.0,37359.0,0.1999]
[1646683169206,0.709037,37361.0,37359.0,0.1999]
[1646683170610,0.509037,37361.0,37359.0,0.1999]
[1646683171511,0.1,37361.0,37359.0,0.1999]
[1646683172135,0.1,37361.0,37360.0,0.60204968]
[1646683172336,0.075,37377.0,37364.0,0.16605681]
[1646683172337,0.18027837,37370.0,37364.0,0.16605681]
[1646683172535,0.08027837,37370.0,37364.0,0.16605681]
[1646683172733,0.08037837,37370.0,37364.0,0.21605681]
[1646683172935,0.08037837,37370.0,37364.0,0.55810649]
[1646683172936,0.1,37369.0,37364.0,0.55810649]
[1646683173137,0.08027837,37370.0,37367.0,0.1998]
[1646683173334,0.07957747,37370.0,37367.0,0.333684]
[1646683173536,0.26787046,37368.0,37367.0,0.133884]
[1646683173734,0.26787046,37368.0,37362.0,7.861e-05]
[1646683173735,0.020089,37367.0,37362.0,7.861e-05]
[1646683173933,0.020089,37367.0,37363.0,0.066961]
[1646683174134,0.020089,37367.0,37360.0,0.31]
[1646683174135,0.409037,37366.0,37360.0,0.31]
[1646683174436,0.409037,37364.0,37360.0,0.31]
[1646683174733,0.529128,37361.0,37360.0,0.26]
[1646683175133,0.509037,37361.0,37360.0,0.32697]
[1646683175396,0.85538998,37361.0,37360.0,0.135]
[1646683175588,0.85538998,37361.0,37357.0,0.13394]
[1646683175589,1.6,37360.0,37357.0,7.37e-05]
[1646683175795,0.046389,37358.0,37357.0,7.37e-05]
[1646683175988,0.046389,37358.0,37347.0,0.21317]
[1646683175989,0.02629,37354.0,37347.0,0.21317]
[1646683176187,0.409037,37348.0,37347.0,0.21317]
[1646683176388,0.658337,37348.0,37347.0,0.21317]
[1646683176586,0.758337,37348.0,37347.0,0.18817]
[1646683176890,0.02629,37346.0,37331.0,0.1590408]
[1646683177089,1.6,37347.0,37331.0,0.1590408]
[1646683177090,0.24933072,37340.0,37332.0,0.20540728]
[1646683177392,0.1,37335.0,37332.0,0.3413412]
[1646683177586,0.1,37335.0,37331.0,0.2260628]
[1646683177786,0.2,37338.0,37332.0,0.30251855]
[1646683177987,0.1,37337.0,37333.0,0.134019]
[1646683178586,0.409037,37336.0,37333.0,0.134019]
[1646683178786,0.409037,37335.0,37333.0,0.134019]
[1646683179931,0.65410898,37335.0,37333.0,0.134019]
[1646683180133,0.65410898,37335.0,37332.0,0.134021]
[1646683180134,0.020108,37334.0,37332.0,0.134021]
[1646683180338,0.224627,37333.0,37331.0,0.1590408]
[1646683180732,0.324627,37333.0,37331.0,0.3336408]
[1646683181038,0.509037,37332.0,37331.0,0.3336408]
[1646683181334,0.1,37332.0,37331.0,0.4006688]
[1646683181533,0.0493,37333.0,37331.0,0.4506688]
[1646683181734,0.0493,37333.0,37331.0,0.85765718]
[1646683181933,0.0493,37333.0,37332.0,0.05]
[1646683182131,0.2,37342.0,37336.0,0.31477634]
[1646683182333,0.11329,37344.0,37338.0,0.066998]
[1646683182536,0.020101,37343.0,37338.0,0.066998]
[1646683182881,0.020101,37343.0,37337.0,0.38878146]
[1646683182882,0.020101,37343.0,37341.0,0.1746]
[1646683183281,0.020101,37343.0,37341.0,0.291609]
[1646683183282,0.408992,37342.0,37341.0,0.291609]
[1646683183483,0.70891266,37342.0,37341.0,0.291609]
[1646683183686,0.70891266,37342.0,37341.0,0.241609]
[1646683183883,0.70891266,37342.0,37339.0,0.200982]
[1646683183884,0.78450266,37342.0,37330.0,0.001]
[1646683184084,0.455393,37339.0,37338.0,9.42e-06]
[1646683184287,0.95415946,37339.0,37338.0,9.42e-06]
[1646683184483,0.95415946,37339.0,37330.0,0.001]
[1646683184484,0.32688912,37332.0,37330.0,0.001]
[1646683184684,0.89754895,37332.0,37330.0,0.068042]
[1646683184884,0.99754895,37332.0,37330.0,0.068042]
[1646683185085,1.19754895,37332.0,37330.0,0.068042]
[1646683185285,0.98918112,37332.0,37330.0,0.068042]
[1646683185486,0.762292,37332.0,37330.0,0.068042]
[1646683186495,0.758292,37332.0,37331.0,0.002]
[1646683186743,0.758292,37332.0,37330.0,0.068042]
[1646683186744,1.12065846,37332.0,37330.0,0.068042]
[1646683186939,1.12065846,37332.0,37330.0,0.001]
[1646683186940,0.87135846,37331.0,37330.0,0.001]
[1646683187140,1.13404846,37331.0,37330.0,0.001]
[1646683188036,0.797972,37331.0,37330.0,0.001]
[1646683188440,0.47600825,37331.0,37330.0,0.001]
[1646683189238,0.558296,37331.0,37330.0,0.001]
[1646683189437,0.65820825,37331.0,37330.0,0.001]
[1646683189939,0.50890825,37331.0,37330.0,0.001]
[1646683190142,0.408996,37331.0,37330.0,0.001]
[1646683190379,0.50890825,37331.0,37330.0,0.001]
[1646683190577,0.60890825,37331.0,37330.0,0.001]
[1646683191386,0.76220825,37331.0,37330.0,0.001]
[1646683191584,0.76220825,37331.0,37330.0,0.261]
[1646683192479,0.75820825,37331.0,37330.0,0.311]
[1646683193285,0.76220825,37331.0,37330.0,0.311]
[1646683193489,0.662296,37331.0,37330.0,0.311]
[1646683193682,0.76220825,37331.0,37330.0,0.311]
[1646683194148,0.56220825,37331.0,37330.0,0.311]
[1646683194448,0.408996,37331.0,37330.0,0.53531716]
[1646683194847,0.50890825,37331.0,37330.0,0.53531716]
[1646683195247,0.51390825,37331.0,37330.0,0.53531716]
[1646683195448,0.21176525,37331.0,37330.0,0.53531716]
[1646683196454,0.20676525,37331.0,37330.0,0.311]
[1646683197250,0.21276525,37331.0,37330.0,0.311]
[1646683198286,0.21276525,37331.0,37330.0,0.361]
[1646683198490,0.20676525,37331.0,37330.0,0.361]
[1646683199488,0.10676525,37331.0,37330.0,0.361]
[1646683199785,0.15099975,37335.0,37330.0,0.769998]
[1646683199987,0.13089475,37335.0,37334.0,0.15]
[1646683200188,0.51696834,37347.0,37338.0,0.067007]
[1646683200189,0.1,37340.0,37338.0,0.067007]
[1646683200387,0.089226,37339.0,37338.0,0.067007]
[1646683200589,0.089226,37339.0,37338.0,0.117007]
[1646683200789,0.1,37339.0,37338.0,0.53952081]
[1646683200993,0.1,37341.0,37339.0,1.32629]
[1646683201189,0.0803289,37347.0,37340.0,0.44880381]
[1646683201398,0.0803289,37347.0,37346.0,0.01351581]
[1646683201647,0.21897918,37359.0,37350.0,0.1575209]
[1646683201648,0.1,37355.0,37350.0,0.1575209]
[1646683201938,0.408998,37355.0,37340.0,0.1]
[1646683202240,0.408998,37355.0,37343.0,0.01351581]
[1646683202241,0.079226,37352.0,37343.0,0.01351581]
[1646683202436,0.1,37344.0,37343.0,0.01351581]
[1646683202636,0.508998,37344.0,37340.0,6.128e-05]
[1646683202838,0.408895,37342.0,37335.0,0.17243997]
[1646683203039,0.2,37341.0,37338.0,0.01351581]
[1646683203236,0.2,37341.0,37340.0,6.128e-05]
[1646683203237,0.1,37341.0,37340.0,6.128e-05]
[1646683203439,0.1,37348.0,37340.0,0.40895628]
[1646683203642,0.025,37352.0,37340.0,0.06705728]
[1646683203643,0.1,37350.0,37340.0,0.06705728]
[1646683203938,0.1,37350.0,37343.0,0.01351581]
[1646683204138,0.29142286,37347.0,37343.0,0.01351581]
[1646683204343,0.42771138,37346.0,37343.0,0.01351581]
[1646683204538,1.6,37345.0,37332.0,0.05]
[1646683204738,1.6,37345.0,37317.0,0.15]
[1646683204739,0.15,37340.0,37317.0,0.15]
[1646683204938,0.22264737,37327.0,37318.0,0.2131986]
[1646683205136,0.15,37336.0,37317.0,0.15]
[1646683205137,0.408895,37334.0,37327.0,0.35902654]
[1646683205388,0.020106,37333.0,37327.0,0.35902654]
[1646683205588,0.28771027,37331.0,37327.0,0.35902654]
[1646683205788,0.120106,37333.0,37327.0,0.35902654]
[1646683205789,0.1,37333.0,37327.0,0.35902654]
[1646683205987,0.1,37335.0,37328.0,0.59722158]
[1646683206191,0.1,37337.0,37329.0,0.70640272]
[1646683206391,0.1,37337.0,37332.0,0.408895]
[1646683206592,0.1,37348.0,37334.0,0.02629]
[1646683206787,0.25152286,37346.0,37338.0,0.02629]
[1646683206993,0.17540319,37340.0,37330.0,0.0493]
[1646683207391,0.033507,37337.0,37329.0,0.005]
[1646683207590,0.33550002,37339.0,37329.0,0.005]
[1646683207591,0.408895,37333.0,37329.0,0.005]
[1646683208090,0.408895,37333.0,37329.0,0.00023]
[1646683208291,0.62327947,37333.0,37329.0,0.00023]
[1646683208591,0.442405,37333.0,37331.0,0.78757104]
[1646683208789,0.442405,37333.0,37331.0,0.85458804]
[1646683208790,0.592405,37333.0,37331.0,0.85458804]
[1646683209164,0.36439586,37332.0,37331.0,0.78757104]
[1646683209365,0.54944672,37332.0,37331.0,0.78757104]
[1646683209564,0.74944672,37332.0,37331.0,0.78757104]
[1646683209761,0.74944672,37332.0,37331.0,0.77757104]
[1646683209966,0.37010172,37332.0,37331.0,1.18646604]
[1646683210362,0.37010172,37332.0,37331.0,0.74947392]
[1646683210563,0.3889181,37332.0,37331.0,0.74947392]
[1646683211161,0.3889181,37332.0,37331.0,0.84947392]
[1646683211361,0.3889181,37332.0,37331.0,0.74947392]
[1646683211362,0.8353241,37332.0,37331.0,0.74947392]
[1646683211565,0.9853241,37332.0,37331.0,0.74947392]
[1646683211762,1.1853241,37332.0,37331.0,0.74947392]
[1646683211962,1.3346241,37332.0,37331.0,0.77947392]
[1646683212267,1.66673881,37332.0,37331.0,0.77947392]
[1646683212466,1.68012881,37332.0,37331.0,0.77947392]
[1646683212660,1.67612881,37332.0,37331.0,0.77947392]
[1646683213692,1.67612881,37332.0,37331.0,0.26728258]
[1646683214493,1.67612881,37332.0,37327.0,0.35902654]
[1646683214494,0.033523,37329.0,37327.0,0.35902654]
[1646683214695,0.01406975,37320.0,37308.0,0.002]
[1646683214899,0.079345,37315.0,37308.0,0.002]
[1646683215092,0.18505086,37312.0,37308.0,0.002]
[1646683215296,0.37010172,37312.0,37311.0,0.2089497]
[1646683215692,0.37010172,37312.0,37311.0,0.6178447]
[1646683215893,0.37010172,37312.0,37311.0,0.2089497]
[1646683216094,0.37010172,37312.0,37310.0,0.54529452]
[1646683216296,0.37010172,37312.0,37311.0,0.045]
[1646683216632,0.37010172,37312.0,37310.0,0.31055273]
[1646683216833,0.37010172,37312.0,37311.0,0.408895]
[1646683217831,0.37010172,37312.0,37310.0,0.31055273]
[1646683218231,0.37010172,37312.0,37310.0,0.36055273]
[1646683218431,0.37010172,37312.0,37310.0,0.05]
[1646683218636,0.37010172,37312.0,37309.0,0.067044]
[1646683218637,0.408895,37310.0,37308.0,0.136103]
[1646683218833,0.079345,37309.0,37308.0,0.136103]
[1646683219132,0.179345,37309.0,37308.0,0.136103]
[1646683219334,0.279345,37309.0,37308.0,0.136103]
[1646683219533,0.11881638,37309.0,37308.0,0.136103]
[1646683219734,0.01881638,37309.0,37308.0,0.136103]
[1646683220396,0.20386724,37309.0,37308.0,0.544998]
[1646683220591,0.20386724,37309.0,37308.0,0.75297867]
[1646683220592,0.3889181,37309.0,37308.0,0.75297867]
[1646683220794,0.3889181,37309.0,37308.0,0.80297867]
[1646683220992,0.1493,37315.0,37308.0,0.80297867]
[1646683220993,0.0493,37315.0,37309.0,0.917045]
[1646683221193,0.233524,37317.0,37309.0,1.21220164]
[1646683221493,0.233524,37317.0,37309.0,0.36220164]
[1646683221894,0.233524,37317.0,37311.0,0.18614539]
[1646683222092,0.233524,37317.0,37312.0,0.067047]
[1646683222296,0.233524,37317.0,37312.0,0.18864969]
[1646683222497,0.1,37317.0,37312.0,0.18864969]
[1646683222693,0.1,37317.0,37312.0,0.117047]
[1646683222894,0.1,37317.0,37314.0,0.02629]
[1646683223095,0.1,37320.0,37315.0,0.502216]
[1646683223294,0.14757853,37327.0,37315.0,0.642955]
[1646683223495,0.1,37325.0,37315.0,0.508895]
[1646683223697,0.1,37331.0,37316.0,0.37438542]
[1646683223894,0.07,37332.0,37316.0,0.41376416]
[1646683224150,0.30820556,37326.0,37318.0,0.06702473]
[1646683224350,0.30820556,37326.0,37316.0,0.39809542]
[1646683224553,0.58327235,37326.0,37318.0,0.067029]
[1646683224749,0.58327235,37326.0,37318.0,0.41512442]
[1646683224948,0.1,37325.0,37318.0,0.067029]
[1646683225348,0.1,37325.0,37322.0,0.1998]
[1646683225549,0.1,37325.0,37322.0,0.26683]
[1646683225749,0.106,37326.0,37323.0,0.05]
[1646683225950,0.006,37326.0,37323.0,0.05]
[1646683226549,0.1,37328.0,37323.0,0.2498]
[1646683226950,0.408895,37327.0,37323.0,0.05]
[1646683227149,0.65527905,37333.0,37326.0,0.18378347]
[1646683227353,0.65527905,37333.0,37327.0,0.067017]
[1646683227354,0.408895,37332.0,37327.0,0.067017]
[1646683227550,0.1,37330.0,37327.0,0.067017]
[1646683227754,0.1,37330.0,37327.0,0.117017]
[1646683228187,0.1,37334.0,37329.0,0.408895]
[1646683228393,0.1,37334.0,37329.0,0.458895]
[1646683228587,0.01339,37338.0,37333.0,0.614587]
[1646683228787,0.01339,37338.0,37334.0,0.408895]
[1646683228987,0.1,37338.0,37334.0,0.458895]
[1646683229187,0.095,37338.0,37334.0,0.458895]
[1646683229386,0.1,37340.0,37334.0,0.53339922]
[1646683229588,0.1,37340.0,37334.0,0.32722324]
[1646683229789,0.1,37340.0,37338.0,0.1998]
[1646683229992,0.15,37354.0,37339.0,0.75555354]
[1646683230199,0.134006,37361.0,37339.0,0.39665854]
[1646683230200,0.408895,37361.0,37339.0,0.39665854]
[1646683230399,0.01338,37361.0,37340.0,0.1]
[1646683230589,0.4628,37366.0,37359.0,0.31810435]
[1646683230590,0.01337,37362.0,37359.0,0.31810435]
[1646683230794,0.0802924,37364.0,37359.0,0.31810435]
[1646683230795,0.01337,37363.0,37360.0,0.34665854]
[1646683230989,0.41843064,37369.0,37359.0,0.31810435]
[1646683230990,0.408895,37367.0,37359.0,0.31810435]
[1646683231187,0.01348833,37368.0,37359.0,0.41810435]
[1646683231388,0.007,37363.0,37359.0,0.1]
[1646683231649,0.408895,37362.0,37360.0,0.066956]
[1646683231840,0.408895,37362.0,37360.0,0.266756]
[1646683232041,0.408895,37362.0,37360.0,0.316756]
[1646683232242,0.508895,37362.0,37361.0,0.05]
[1646683232640,0.1,37362.0,37361.0,0.05]
[1646683232841,0.1,37362.0,37361.0,0.26982815]
[1646683233045,0.508895,37362.0,37361.0,0.05]
[1646683233641,0.1,37362.0,37361.0,0.05]
[1646683235389,0.008,37362.0,37361.0,0.05]
[1646683235788,0.008,37362.0,37361.0,0.0235]
[1646683235988,0.008,37362.0,37360.0,0.55004967]
[1646683236389,0.008,37362.0,37360.0,0.316756]
[1646683236588,0.0999,37361.0,37360.0,0.316756]
[1646683236790,0.1,37366.0,37360.0,0.2498]
[1646683236992,0.033476,37365.0,37361.0,0.02629]
[1646683237190,0.033476,37365.0,37364.0,0.1998]
[1646683237389,0.033476,37365.0,37364.0,0.2498]
[1646683237588,0.033476,37365.0,37364.0,0.2998]
[1646683238194,0.108,37366.0,37364.0,0.32609]
[1646683238490,0.108,37366.0,37365.0,0.408895]
[1646683238491,0.008,37366.0,37365.0,0.408895]
[1646683238790,0.03359893,37368.0,37365.0,0.58132891]
[1646683238990,0.033473,37368.0,37366.0,0.02629]
[1646683239238,0.408895,37367.0,37364.0,0.16189]
[1646683239442,0.558895,37367.0,37366.0,0.1998]
[1646683239836,0.658895,37367.0,37366.0,0.1998]
[1646683240039,0.658895,37367.0,37364.0,0.06189]
[1646683240040,0.100458,37366.0,37364.0,0.06189]
[1646683240238,0.5213679,37365.0,37364.0,0.06189]
[1646683240437,0.658895,37365.0,37364.0,0.06189]
[1646683240637,0.758895,37365.0,37364.0,0.06189]
[1646683241536,0.608895,37365.0,37364.0,0.06189]
[1646683241741,0.25,37367.0,37364.0,0.06189]
[1646683241938,0.1,37367.0,37365.0,0.408895]
[1646683242136,0.15011183,37368.0,37364.0,0.06189]
[1646683242337,0.15011183,37368.0,37365.0,0.05]
[1646683242742,0.15,37368.0,37364.0,0.16189]
[1646683242986,0.508895,37367.0,37364.0,0.16189]
[1646683243186,0.1,37366.0,37364.0,0.16189]
[1646683243385,0.1,37366.0,37365.0,0.066953]
[1646683243886,0.658895,37366.0,37364.0,0.26169]
[1646683244087,0.079345,37365.0,37364.0,0.26169]
[1646683244287,0.079345,37365.0,37350.0,0.02629]
[1646683244288,0.475873,37363.0,37341.0,0.02683162]
[1646683244487,0.15,37354.0,37343.0,0.5]
[1646683244691,0.25,37354.0,37346.0,0.19527319]
[1646683244887,0.1,37354.0,37353.0,0.25937199]
[1646683245086,0.4589,37361.0,37354.0,0.02629]
[1646683245087,0.1,37358.0,37354.0,0.02629]
[1646683245286,0.1,37358.0,37355.0,0.435185]
[1646683245487,0.033478,37366.0,37357.0,0.06695]
[1646683245688,0.033478,37366.0,37360.0,0.408895]
[1646683245890,0.33622873,37366.0,37360.0,0.408895]
[1646683246085,0.33622873,37366.0,37361.0,0.408895]
[1646683246086,0.1,37364.0,37361.0,0.408895]
[1646683246290,0.1,37364.0,37361.0,0.05]
[1646683246637,0.1,37364.0,37361.0,0.408895]
[1646683246835,0.05,37364.0,37361.0,0.408895]
[1646683247035,0.05,37364.0,37361.0,0.05]
[1646683247235,0.05,37364.0,37362.0,0.458895]
[1646683247435,0.05,37364.0,37363.0,0.04916473]
[1646683247635,0.05,37364.0,37363.0,0.04751881]
[1646683247835,0.10011214,37368.0,37364.0,0.06695]
[1646683248038,0.08621214,37368.0,37365.0,0.1368]
[1646683248239,0.08621214,37368.0,37365.0,0.1868]
[1646683248438,0.508895,37366.0,37365.0,0.1868]
[1646683248639,0.1,37366.0,37365.0,0.1868]
[1646683248843,0.42507994,37366.0,37365.0,0.1868]
[1646683249236,0.98397494,37366.0,37365.0,0.2368]
[1646683249439,1.08897494,37366.0,37365.0,0.1]
[1646683249638,1.08897494,37366.0,37354.0,0.005]
[1646683249639,0.02629,37365.0,37354.0,0.005]
[1646683249839,0.15,37358.0,37357.0,0.1368]
[1646683250040,0.658895,37358.0,37357.0,0.1368]
[1646683250237,0.74286714,37358.0,37357.0,0.1368]
[1646683250491,0.1,37358.0,37357.0,0.1368]
[1646683250691,0.1,37359.0,37357.0,0.1368]
[1646683250891,0.133487,37359.0,37357.0,0.1368]
[1646683251090,0.033487,37359.0,37357.0,0.1368]
[1646683251291,0.133487,37359.0,37358.0,0.1]
[1646683251595,0.1,37361.0,37358.0,0.92107161]
[1646683251791,0.1,37366.0,37358.0,0.92107161]
[1646683251792,0.1,37366.0,37359.0,0.408895]
[1646683252092,0.32758362,37374.0,37359.0,0.408895]
[1646683252093,0.033478,37364.0,37359.0,0.408895]
[1646683252592,0.066956,37368.0,37361.0,0.25489124]
[1646683252593,0.00010978,37368.0,37361.0,0.25489124]
[1646683252793,0.00010978,37368.0,37366.0,0.31680248]
[1646683252991,0.00010978,37368.0,37366.0,0.1368]
[1646683253391,0.1,37370.0,37367.0,0.05]
[1646683253589,0.1,37370.0,37367.0,0.1]
[1646683253792,0.55900479,37369.0,37367.0,0.1]
[1646683253997,0.65900479,37369.0,37367.0,0.05]
[1646683254247,0.65900479,37369.0,37366.0,0.05]
[1646683254248,0.079345,37367.0,37366.0,0.05]
[1646683254441,0.128645,37367.0,37355.0,0.23244481]
[1646683254640,0.328645,37367.0,37364.0,0.1]
[1646683254842,0.25981885,37361.0,37355.0,0.1]
[1646683255042,0.31002947,37360.0,37354.0,0.005]
[1646683255243,0.408895,37357.0,37354.0,0.005]
[1646683255442,0.1,37358.0,37354.0,0.005]
[1646683255443,0.229345,37355.0,37354.0,0.005]
[1646683255643,0.329345,37355.0,37354.0,0.005]
[1646683255842,0.362838,37355.0,37354.0,0.005]
[1646683256043,0.6202699,37355.0,37354.0,0.005]
[1646683256846,0.692388,37355.0,37354.0,0.005]
[1646683257892,0.1,37357.0,37354.0,0.005]
[1646683258091,0.408895,37358.0,37354.0,0.005]
[1646683258291,0.408895,37357.0,37354.0,0.071965]
[1646683258492,0.408895,37357.0,37355.0,0.1368]
[1646683258692,0.1,37358.0,37354.0,0.171965]
[1646683258893,0.408895,37357.0,37355.0,0.05]
[1646683259094,0.44238,37357.0,37355.0,0.05]
[1646683259293,0.2,37358.0,37354.0,0.171965]
[1646683259500,0.2,37358.0,37355.0,0.545695]
[1646683259699,0.0493,37362.0,37356.0,0.05]
[1646683259896,0.408895,37363.0,37358.0,0.066961]
[1646683260096,0.408895,37363.0,37354.0,0.105]
[1646683260097,0.033481,37361.0,37354.0,0.105]
[1646683260297,0.408895,37358.0,37355.0,0.5]
[1646683260496,0.15,37359.0,37356.0,0.1368]
[1646683260497,0.35,37359.0,37356.0,0.1368]
[1646683260697,0.35,37359.0,37356.0,0.1868]
[1646683260896,0.408895,37358.0,37357.0,0.05]
[1646683261097,0.112832,37358.0,37357.0,0.05]
[1646683261296,0.11337,37367.0,37357.0,0.79903984]
[1646683261500,0.25,37367.0,37364.0,0.19330202]
[1646683261757,0.25,37367.0,37360.0,0.05]
[1646683261758,0.15,37367.0,37360.0,0.05]
[1646683261955,0.1,37365.0,37359.0,0.05]
[1646683262158,0.15,37367.0,37359.0,0.11695161]
[1646683262362,0.0001134,37368.0,37363.0,0.542799]
[1646683262556,0.0001134,37368.0,37364.0,0.34014484]
[1646683262757,0.0001134,37368.0,37365.0,0.458895]
[1646683262956,0.0001134,37368.0,37367.0,0.57974385]
[1646683263156,0.1,37370.0,37368.0,0.408895]
[1646683263455,0.1,37370.0,37367.0,0.27084885]
[1646683263654,0.1,37370.0,37368.0,0.05]
[1646683264056,0.1,37370.0,37367.0,0.16695]